[Event "NJSK 2023 Meisjes B"]
[Site "Almelo, Netherlands"]
[Date "2023.05.02"]
[Round "3.2"]
[White "Damen, Josephine"]
[Black "Yildirim, Azra"]
[Result "1-0"]
[TimeControl "90min/40moves + 30min + 30sec/move"]
[WhiteElo "1628"]
[BlackElo "1275"]

1. e4 {[%clk 01:30:58]} {[%emt 00:00:02]} e5 {[%clk 01:30:52]} {[%emt
00:00:09]} 2. Nf3 {[%clk 01:31:23]} {[%emt 00:00:04]} Nc6 {[%clk 01:30:51]}
{[%emt 00:00:32]} 3. Bc4 {[%clk 01:31:46]} {[%emt 00:00:06]} Bc5 {[%clk
01:30:46]} {[%emt 00:00:35]} 4. c3 {[%clk 01:32:10]} {[%emt 00:00:06]} Nf6
{[%clk 01:29:46]} {[%emt 00:01:30]} 5. d4 {[%clk 01:32:21]} {[%emt 00:00:18]}
exd4 {[%clk 01:29:14]} {[%emt 00:01:03]} 6. cxd4 {[%clk 01:32:45]} {[%emt
00:00:07]} Bb4+ {[%clk 01:27:54]} {[%emt 00:01:50]} 7. Nc3 {[%clk 01:32:28]}
{[%emt 00:00:46]} d5 {[%clk 01:23:21]} {[%emt 00:05:03]} 8. exd5 {[%clk
01:32:00]} {[%emt 00:00:58]} Nxd5 {[%clk 01:19:30]} {[%emt 00:04:21]} 9. O-O
{[%clk 01:30:29]} {[%emt 00:02:01]} Be6 {[%clk 01:13:29]} {[%emt 00:06:31]} 10.
Qe2 {[%clk 00:49:55]} {[%emt 00:41:03]} O-O {[%clk 01:05:35]} {[%emt 00:08:24]}
11. Ng5 {[%clk 00:41:57]} {[%emt 00:08:28]} Nxd4 {[%clk 00:52:48]} {[%emt
00:13:18]} 12. Qd3 {[%clk 00:28:12]} {[%emt 00:14:15]} Nf6 {[%clk 00:49:05]}
{[%emt 00:04:13]} 13. Nce4 {[%clk 00:27:43]} {[%emt 00:00:59]} Bf5 {[%clk
00:45:37]} {[%emt 00:03:59]} 14. Nxf7 {[%emt 00:03:41]} Rxf7 {[%clk 00:43:41]}
15. Bxf7+ {[%clk 00:27:21]} {[%emt 00:00:06]} Kxf7 {[%clk 00:44:05]} {[%emt
00:00:06]} 16. f3 {[%clk 00:24:21]} {[%emt 00:03:31]} Qd5 {[%clk 00:24:11]}
{[%emt 00:20:24]} 17. Kh1 {[%clk 00:16:40]} {[%emt 00:08:10]} Re8 {[%clk
00:19:32]} {[%emt 00:05:09]} 18. Be3 {[%clk 00:11:36]} {[%emt 00:05:34]} c5
{[%clk 00:14:48]} {[%emt 00:05:14]} 19. a3 {[%clk 00:10:03]} {[%emt 00:02:03]}
Ba5 {[%clk 00:14:35]} {[%emt 00:00:43]} 20. b4 {[%clk 00:09:24]} {[%emt
00:01:09]} Bb6 {[%clk 00:14:42]} {[%emt 00:00:23]} 21. bxc5 {[%clk 00:07:21]}
{[%emt 00:02:33]} Bxc5 {[%clk 00:14:31]} {[%emt 00:00:40]} 22. Bxd4 {[%clk
00:07:03]} {[%emt 00:00:48]} Bxd4 {[%clk 00:12:10]} {[%emt 00:02:51]} 23. Rad1
{[%clk 00:06:49]} {[%emt 00:00:43]} Rd8 {[%clk 00:09:23]} {[%emt 00:03:17]} 24.
g4 {[%clk 00:04:59]} {[%emt 00:02:24]} Bxe4 {[%clk 00:09:14]} {[%emt 00:00:35]}
25. fxe4 {[%clk 00:05:11]} {[%emt 00:00:18]} Qe5 {[%clk 00:09:31]} {[%emt
00:00:12]} 26. g5 {[%clk 00:04:21]} {[%emt 00:01:20]} Qxg5 {[%clk 00:06:47]}
{[%emt 00:03:14]} 27. Qc4+ {[%clk 00:04:39]} {[%emt 00:00:13]} Kf8 {[%clk
00:06:34]} {[%emt 00:00:44]} 28. Rxd4 {[%clk 00:04:53]} {[%emt 00:00:16]} Rxd4
{[%clk 00:06:38]} {[%emt 00:00:26]} 29. Qxd4 {[%clk 00:05:16]} {[%emt
00:00:06]} Qb5 {[%clk 00:06:05]} {[%emt 00:01:03]} 30. Qd1 {[%clk 00:03:02]}
{[%emt 00:02:44]} Ke7 {[%clk 00:04:52]} {[%emt 00:01:44]} 31. Re1 {[%clk
00:02:59]} {[%emt 00:00:33]} Qc5 {[%clk 00:04:08]} {[%emt 00:01:15]} 32. Qb3
{[%clk 00:02:41]} {[%emt 00:00:48]} b6 {[%clk 00:03:37]} {[%emt 00:01:02]} 33.
Qg3 {[%clk 00:02:50]} {[%emt 00:00:20]} Nh5 {[%clk 00:02:23]} {[%emt 00:01:44]}
34. Qh4+ {[%clk 00:02:36]} {[%emt 00:00:43]} Ke6 {[%clk 00:02:12]} {[%emt
00:00:41]} 35. Qg4+ {[%clk 00:02:39]} {[%emt 00:00:27]} Ke7 {[%clk 00:02:21]}
{[%emt 00:00:22]} 36. Rd1 {[%clk 00:02:29]} {[%emt 00:00:39]} Kf6 {[%clk
00:01:50]} {[%emt 00:01:02]} 37. Qh4+ {[%clk 00:02:11]} {[%emt 00:00:45]} Ke6
{[%clk 00:01:48]} {[%emt 00:00:34]} 38. Qg4+ {[%clk 00:02:00]} {[%emt
00:00:40]} Kf6 {[%clk 00:01:58]} {[%emt 00:00:20]} 39. Qd7 {[%clk 00:01:20]}
{[%emt 00:01:10]} Qf2 {[%clk 00:00:45]} {[%emt 00:01:45]} 40. Qd6+ {[%clk
00:00:53]} {[%emt 00:00:57]} Kf7 {[%clk 00:00:52]} {[%emt 00:00:23]} 41. Qd5+
{[%clk 00:28:52]} {[%emt 00:02:30]} Kg6 {[%clk 00:28:21]} {[%emt 00:03:02]} 42.
Rg1+ {[%clk 00:29:12]} {[%emt 00:00:09]} Kf6 {[%clk 00:28:25]} {[%emt
00:00:26]} 43. Qxh5 {[%clk 00:29:25]} {[%emt 00:00:16]} g6 {[%clk 00:28:35]}
{[%emt 00:00:22]} 44. Qh3 {[%clk 00:28:58]} {[%emt 00:00:56]} Ke5 {[%clk
00:25:32]} {[%emt 00:03:33]} 45. Qg3+ {[%clk 00:24:36]} {[%emt 00:04:52]} Qxg3
{[%clk 00:25:51]} {[%emt 00:00:11]} 46. Rxg3 {[%clk 00:25:03]} {[%emt
00:00:03]} Kxe4 {[%clk 00:26:15]} {[%emt 00:00:06]} 47. Rc3 {[%clk 00:25:22]}
{[%emt 00:00:10]} a5 {[%clk 00:25:50]} {[%emt 00:00:56]} 48. Rb3 {[%clk
00:25:27]} {[%emt 00:00:24]} h5 {[%clk 00:25:46]} {[%emt 00:00:35]} 49. Rxb6
{[%clk 00:25:44]} {[%emt 00:00:12]} g5 {[%clk 00:25:22]} {[%emt 00:00:54]} 50.
Rb5 {[%clk 00:26:06]} {[%emt 00:00:08]} Kf4 {[%clk 00:25:48]} {[%emt 00:00:05]}
51. Rxa5 {[%clk 00:26:23]} {[%emt 00:00:13]} h4 {[%clk 00:25:56]} {[%emt
00:00:22]} 52. Rxg5 {[%clk 00:24:11]} {[%emt 00:02:42]} Kxg5 {[%clk 00:26:17]}
{[%emt 00:00:09]} 53. a4 {[%clk 00:24:38]} {[%emt 00:00:04]} 1-0

[Event "NJSK 2023 Meisjes B"]
[Site "Almelo, Netherlands"]
[Date "2023.05.02"]
[Round "3.3"]
[White "Kulikova, Polina"]
[Black "Feng, Elysia"]
[Result "0-1"]
[TimeControl "90min/40moves + 30min + 30sec/move"]
[WhiteElo "1589"]
[BlackElo "1697"]

1. c4 {[%clk 01:30:55]} {[%emt 00:00:05]} e5 {[%clk 01:30:26]} {[%emt
00:00:34]} 2. Nc3 {[%clk 01:31:15]} {[%emt 00:00:09]} Nf6 {[%clk 01:30:47]}
{[%emt 00:00:09]} 3. Nf3 {[%clk 01:31:27]} {[%emt 00:00:18]} Nc6 {[%clk
01:31:12]} {[%emt 00:00:06]} 4. a3 {[%clk 01:31:33]} {[%emt 00:00:23]} d5
{[%clk 01:25:57]} {[%emt 00:05:46]} 5. cxd5 {[%clk 01:31:13]} {[%emt 00:00:50]}
Nxd5 {[%clk 01:26:25]} {[%emt 00:00:02]} 6. e4 {[%clk 01:27:09]} {[%emt
00:04:33]} Nf6 {[%clk 01:12:02]} {[%emt 00:14:54]} 7. Bb5 {[%clk 01:26:44]}
{[%emt 00:00:54]} Bg4 {[%clk 01:08:34]} {[%emt 00:03:58]} 8. h3 {[%clk
01:23:42]} {[%emt 00:03:31]} Bxf3 {[%clk 01:08:56]} {[%emt 00:00:10]} 9. Qxf3
{[%clk 01:23:58]} {[%emt 00:00:14]} Bc5 {[%clk 01:09:18]} {[%emt 00:00:08]} 10.
O-O {[%clk 01:10:53]} {[%emt 00:13:35]} O-O {[%clk 01:08:03]} {[%emt 00:01:45]}
11. Bxc6 {[%clk 01:10:39]} {[%emt 00:00:44]} bxc6 {[%clk 01:08:33]} {[%emt
00:00:01]} 12. d3 {[%clk 01:08:07]} {[%emt 00:03:01]} Qd6 {[%clk 01:05:41]}
{[%emt 00:03:22]} 13. Rd1 {[%clk 01:05:18]} {[%emt 00:03:19]} Nd7 {[%clk
01:02:10]} {[%emt 00:04:02]} 14. Be3 {[%clk 01:00:33]} {[%emt 00:05:12]} Bb6
{[%clk 00:59:14]} {[%emt 00:03:28]} 15. Rd2 {[%clk 00:54:57]} {[%emt 00:06:04]}
Nc5 {[%clk 00:46:09]} {[%emt 00:13:36]} 16. Bxc5 {[%clk 00:52:07]} {[%emt
00:03:20]} Bxc5 {[%clk 00:46:07]} {[%emt 00:00:32]} 17. Qd1 {[%clk 00:46:51]}
{[%emt 00:05:44]} Qe6 {[%clk 00:39:21]} {[%emt 00:07:18]} 18. Qc2 {[%clk
00:43:06]} {[%emt 00:04:14]} Bb6 {[%clk 00:37:15]} {[%emt 00:02:37]} 19. Rc1
{[%clk 00:28:57]} {[%emt 00:14:38]} Rad8 {[%clk 00:32:01]} {[%emt 00:05:44]} 20.
Ne2 {[%clk 00:25:03]} {[%emt 00:04:22]} Rd6 {[%clk 00:30:42]} {[%emt 00:01:51]}
21. Nc3 {[%clk 00:22:10]} {[%emt 00:03:23]} Kh8 {[%clk 00:29:17]} {[%emt
00:01:55]} 22. Na4 {[%clk 00:20:10]} {[%emt 00:02:30]} Bd4 {[%clk 00:27:45]}
{[%emt 00:02:03]} 23. Nc5 {[%clk 00:19:19]} {[%emt 00:01:20]} Qh6 {[%clk
00:25:33]} {[%emt 00:02:43]} 24. Rcd1 {[%clk 00:15:26]} {[%emt 00:04:22]} f5
{[%clk 00:21:43]} {[%emt 00:04:20]} 25. exf5 {[%clk 00:12:48]} {[%emt
00:03:08]} Rxf5 {[%clk 00:22:12]} {[%emt 00:00:02]} 26. Ne4 {[%clk 00:13:05]}
{[%emt 00:00:13]} Rg6 {[%clk 00:19:58]} {[%emt 00:02:44]} 27. Kh1 {[%clk
00:11:31]} {[%emt 00:02:04]} Rh5 {[%clk 00:18:37]} {[%emt 00:01:50]} 28. Ng3
{[%clk 00:08:12]} {[%emt 00:03:50]} Rxh3+ {[%clk 00:18:28]} {[%emt 00:00:39]}
29. Kg1 {[%clk 00:07:30]} {[%emt 00:01:13]} Rgxg3 {[%clk 00:18:46]} {[%emt
00:00:11]} 30. Kf1 {[%clk 00:07:47]} {[%emt 00:00:13]} Rh1+ {[%clk 00:19:11]}
{[%emt 00:00:05]} 31. Ke2 {[%clk 00:07:51]} {[%emt 00:00:26]} Qh5+ {[%clk
00:19:34]} {[%emt 00:00:05]} 32. f3 {[%clk 00:08:10]} {[%emt 00:00:13]} Rxg2#
{[%clk 00:20:00]} {[%emt 00:00:06]} 0-1

[Event "NJSK 2023 Meisjes B"]
[Site "Almelo, Netherlands"]
[Date "2023.05.02"]
[Round "3.4"]
[White "Tangarife Ramirez, Katja"]
[Black "Zahirna, Iryna"]
[Result "1-0"]
[TimeControl "90min/40moves + 30min + 30sec/move"]
[WhiteElo "1667"]
[BlackElo "1594"]

1. d4 {[%clk 01:30:57]} {[%emt 00:00:02]} d5 {[%clk 01:30:55]} {[%emt
00:00:05]} 2. Nf3 {[%clk 01:31:23]} {[%emt 00:00:04]} Nf6 {[%clk 01:31:04]}
{[%emt 00:00:21]} 3. c4 {[%clk 01:31:21]} {[%emt 00:00:33]} e6 {[%clk
01:30:36]} {[%emt 00:00:59]} 4. g3 {[%clk 01:30:58]} {[%emt 00:00:52]} Nc6
{[%clk 01:28:18]} {[%emt 00:02:48]} 5. Bg2 {[%clk 01:28:12]} {[%emt 00:03:17]}
dxc4 {[%clk 01:20:03]} {[%emt 00:08:45]} 6. O-O {[%clk 01:26:30]} {[%emt
00:02:12]} Bd6 {[%clk 01:13:41]} {[%emt 00:06:52]} 7. Bg5 {[%clk 01:22:34]}
{[%emt 00:04:25]} h6 {[%clk 01:09:50]} {[%emt 00:04:21]} 8. Bxf6 {[%clk
01:22:36]} {[%emt 00:00:28]} Qxf6 {[%clk 01:09:08]} {[%emt 00:01:13]} 9. e4
{[%clk 01:08:44]} {[%emt 00:14:21]} e5 {[%clk 00:59:47]} {[%emt 00:09:51]} 10.
d5 {[%clk 01:05:34]} {[%emt 00:03:40]} Nd4 {[%clk 00:56:50]} {[%emt 00:03:27]}
11. Nxd4 {[%clk 01:05:21]} {[%emt 00:00:42]} exd4 {[%clk 00:57:08]} {[%emt
00:00:13]} 12. Qa4+ {[%clk 01:03:24]} {[%emt 00:02:27]} Bd7 {[%clk 00:56:41]}
{[%emt 00:00:57]} 13. Qxc4 {[%clk 01:03:10]} {[%emt 00:00:44]} a6 {[%clk
00:51:53]} {[%emt 00:05:18]} 14. Re1 {[%clk 00:48:13]} {[%emt 00:15:26]} Bb5
{[%clk 00:46:38]} {[%emt 00:05:45]} 15. Qb3 {[%clk 00:47:51]} {[%emt 00:00:52]}
O-O {[%clk 00:42:41]} {[%emt 00:04:27]} 16. Nd2 {[%clk 00:44:03]} {[%emt
00:04:18]} c6 {[%clk 00:34:42]} {[%emt 00:08:30]} 17. a4 {[%clk 00:41:48]}
{[%emt 00:02:44]} 1-0

[Event "NJSK 2023 Meisjes B"]
[Site "Almelo, Netherlands"]
[Date "2023.05.02"]
[Round "3.5"]
[White "De Bruijne, Marlies"]
[Black "Oostinga, Elisa"]
[Result "0-1"]
[TimeControl "90min/40moves + 30min + 30sec/move"]
[WhiteElo "945"]
[BlackElo "1034"]

1. d4 {[%clk 01:30:58]} {[%emt 00:00:01]} d5 {[%clk 01:30:52]} {[%emt
00:00:08]} 2. c4 {[%clk 01:31:19]} {[%emt 00:00:09]} c6 {[%clk 01:31:15]}
{[%emt 00:00:07]} 3. Nf3 {[%clk 01:31:30]} {[%emt 00:00:19]} Nf6 {[%clk
01:31:29]} {[%emt 00:00:15]} 4. Nc3 {[%clk 01:31:38]} {[%emt 00:00:22]} dxc4
{[%clk 01:31:34]} {[%emt 00:00:25]} 5. a4 {[%clk 01:30:27]} {[%emt 00:01:42]}
Bf5 {[%clk 01:30:51]} {[%emt 00:01:13]} 6. e3 {[%clk 01:29:45]} {[%emt
00:01:13]} Nbd7 {[%clk 01:29:57]} {[%emt 00:01:24]} 7. Bxc4 {[%clk 01:29:23]}
{[%emt 00:00:52]} e6 {[%clk 01:29:31]} {[%emt 00:00:55]} 8. O-O {[%clk
01:27:55]} {[%emt 00:01:58]} Bb4 {[%clk 01:28:05]} {[%emt 00:01:56]} 9. Bd2
{[%clk 01:22:51]} {[%emt 00:05:34]} O-O {[%clk 01:27:31]} {[%emt 00:01:04]} 10.
Qb3 {[%clk 01:14:35]} {[%emt 00:08:46]} a5 {[%clk 01:25:40]} {[%emt 00:02:21]}
11. Na2 {[%clk 01:11:27]} {[%emt 00:03:38]} Bxd2 {[%clk 01:19:08]} {[%emt
00:07:01]} 12. Nxd2 {[%clk 01:11:13]} {[%emt 00:00:44]} Rb8 {[%clk 01:14:15]}
{[%emt 00:05:23]} 13. Rad1 {[%clk 01:07:31]} {[%emt 00:04:13]} Qe7 {[%clk
01:05:57]} {[%emt 00:08:48]} 14. Qc3 {[%clk 01:02:18]} {[%emt 00:05:43]} Ra8
{[%clk 00:56:58]} {[%emt 00:09:29]} 15. f3 {[%clk 00:58:11]} {[%emt 00:04:36]}
e5 {[%clk 00:53:12]} {[%emt 00:04:17]} 16. e4 {[%clk 00:50:49]} {[%emt
00:07:52]} Bg6 {[%clk 00:50:25]} {[%emt 00:03:17]} 17. Nb3 {[%clk 00:43:36]}
{[%emt 00:07:44]} b6 {[%clk 00:46:57]} {[%emt 00:03:59]} 18. d5 {[%clk
00:36:36]} {[%emt 00:07:29]} cxd5 {[%clk 00:43:20]} {[%emt 00:04:07]} 19. Bxd5
{[%clk 00:35:43]} {[%emt 00:01:23]} Rac8 {[%clk 00:42:50]} {[%emt 00:01:00]} 20.
Qd2 {[%clk 00:30:12]} {[%emt 00:06:01]} Rfd8 {[%clk 00:39:18]} {[%emt
00:04:03]} 21. Nc3 {[%clk 00:26:22]} {[%emt 00:04:21]} h6 {[%clk 00:27:46]}
{[%emt 00:12:02]} 22. Nb5 {[%clk 00:21:59]} {[%emt 00:04:53]} Nxd5 {[%clk
00:24:14]} {[%emt 00:04:02]} 23. exd5 {[%clk 00:16:41]} {[%emt 00:05:47]} Bc2
{[%clk 00:23:14]} {[%emt 00:01:30]} 24. Na7 {[%clk 00:14:29]} {[%emt 00:02:42]}
Bxb3 {[%clk 00:17:57]} {[%emt 00:05:47]} 25. Nxc8 {[%clk 00:09:42]} {[%emt
00:05:17]} Qc5+ {[%clk 00:17:37]} {[%emt 00:00:49]} 26. Kh1 {[%clk 00:06:23]}
{[%emt 00:03:50]} Bxd1 {[%clk 00:17:16]} {[%emt 00:00:51]} 27. Rxd1 {[%clk
00:06:37]} {[%emt 00:00:16]} Rxc8 {[%clk 00:16:51]} {[%emt 00:00:55]} 28. h3
{[%clk 00:06:26]} {[%emt 00:00:41]} Nf6 {[%clk 00:16:03]} {[%emt 00:01:18]} 29.
d6 {[%clk 00:06:17]} {[%emt 00:00:40]} Rd8 {[%clk 00:15:15]} {[%emt 00:01:18]}
30. Kh2 {[%clk 00:04:29]} {[%emt 00:02:17]} Rd7 {[%clk 00:13:21]} {[%emt
00:02:24]} 31. Qd3 {[%clk 00:03:49]} {[%emt 00:01:10]} Ne8 {[%clk 00:11:41]}
{[%emt 00:02:09]} 32. Rd2 {[%clk 00:03:18]} {[%emt 00:01:02]} Qxd6 {[%clk
00:09:30]} {[%emt 00:02:41]} 33. Qxd6 {[%clk 00:03:10]} {[%emt 00:00:36]} Rxd6
{[%clk 00:09:11]} {[%emt 00:00:50]} 34. Rc2 {[%clk 00:03:15]} {[%emt 00:00:25]}
f6 {[%clk 00:09:02]} {[%emt 00:00:39]} 35. Rc8 {[%clk 00:03:20]} {[%emt
00:00:25]} Kf7 {[%clk 00:09:23]} {[%emt 00:00:09]} 36. h4 {[%clk 00:02:56]}
{[%emt 00:00:54]} Rd2 {[%clk 00:09:14]} {[%emt 00:00:38]} 37. b3 {[%clk
00:03:10]} {[%emt 00:00:17]} Rd3 {[%clk 00:09:23]} {[%emt 00:00:21]} 38. Rc6
{[%clk 00:03:00]} {[%emt 00:00:41]} Rxb3 {[%clk 00:09:38]} {[%emt 00:00:15]} 39.
Kh3 {[%clk 00:03:08]} {[%emt 00:00:21]} Rb4 {[%clk 00:09:37]} {[%emt 00:00:31]}
40. g4 {[%clk 00:03:05]} {[%emt 00:00:32]} Rxa4 {[%clk 00:08:49]} {[%emt
00:01:18]} 41. Rxb6 {[%clk 00:03:27]} {[%emt 00:00:08]} Rb4 {[%clk 00:08:50]}
{[%emt 00:00:29]} 42. Ra6 {[%clk 00:03:36]} {[%emt 00:00:21]} Ra4 {[%clk
00:07:12]} {[%emt 00:02:08]} 43. Ra7+ {[%clk 00:03:48]} {[%emt 00:00:18]} Ke6
{[%clk 00:07:28]} {[%emt 00:00:14]} 44. Ra8 {[%clk 00:03:29]} {[%emt 00:00:50]}
Kd7 {[%clk 00:07:35]} {[%emt 00:00:24]} 45. Ra7+ {[%clk 00:02:49]} {[%emt
00:01:10]} Nc7 {[%clk 00:07:54]} {[%emt 00:00:11]} 46. Kg3 {[%clk 00:02:51]}
{[%emt 00:00:28]} Ra1 {[%clk 00:07:45]} {[%emt 00:00:39]} 47. Kf2 {[%clk
00:02:09]} {[%emt 00:01:12]} Kc6 {[%clk 00:07:41]} {[%emt 00:00:34]} 0-1

[Event "NJSK 2023 Meisjes B"]
[Site "Almelo, Netherlands"]
[Date "2023.05.02"]
[Round "3.6"]
[White "Luijkx, Dagmar"]
[Black "Ganeshram, Nirupa"]
[Result "1/2-1/2"]
[TimeControl "90min/40moves + 30min + 30sec/move"]
[WhiteElo "1559"]
[BlackElo "1629"]

1. d4 {[%clk 01:30:57]} {[%emt 00:00:02]} d5 {[%clk 01:30:34]} {[%emt
00:00:27]} 2. Bf4 {[%clk 01:31:21]} {[%emt 00:00:06]} Bf5 {[%clk 01:30:56]}
{[%emt 00:00:09]} 3. e3 {[%clk 01:31:45]} {[%emt 00:00:06]} e6 {[%clk
01:31:05]} {[%emt 00:00:20]} 4. Nf3 {[%clk 01:31:43]} {[%emt 00:00:32]} c5
{[%clk 01:30:51]} {[%emt 00:00:44]} 5. c3 {[%clk 01:31:55]} {[%emt 00:00:18]}
Nc6 {[%clk 01:29:27]} {[%emt 00:01:53]} 6. Nbd2 {[%clk 01:28:14]} {[%emt
00:04:12]} Nf6 {[%clk 01:29:21]} {[%emt 00:00:36]} 7. Qb3 {[%clk 01:26:35]}
{[%emt 00:02:08]} Qb6 {[%clk 01:23:49]} {[%emt 00:06:02]} 8. Qxb6 {[%clk
01:23:43]} {[%emt 00:03:23]} axb6 {[%clk 01:24:05]} {[%emt 00:00:13]} 9. Bb5
{[%clk 01:19:03]} {[%emt 00:05:10]} Rc8 {[%clk 01:18:45]} {[%emt 00:05:50]} 10.
a4 {[%clk 01:16:08]} {[%emt 00:03:26]} Be7 {[%clk 01:17:35]} {[%emt 00:01:40]}
11. O-O {[%clk 01:14:21]} {[%emt 00:02:16]} O-O {[%clk 01:17:30]} {[%emt
00:00:36]} 12. Nh4 {[%clk 01:12:43]} {[%emt 00:02:07]} Bg4 {[%clk 01:08:49]}
{[%emt 00:09:11]} 13. h3 {[%clk 01:09:12]} {[%emt 00:04:00]} Bh5 {[%clk
01:08:47]} {[%emt 00:00:33]} 14. Nhf3 {[%clk 01:09:03]} {[%emt 00:00:39]} Bg6
{[%clk 01:02:17]} {[%emt 00:07:00]} 15. Nh4 {[%clk 01:07:45]} {[%emt 00:01:47]}
Na7 {[%clk 00:51:00]} {[%emt 00:11:48]} 16. Nxg6 {[%clk 01:07:37]} {[%emt
00:00:38]} hxg6 {[%clk 00:51:16]} {[%emt 00:00:14]} 17. Bd3 {[%clk 01:00:54]}
{[%emt 00:07:12]} c4 {[%clk 00:47:35]} {[%emt 00:04:12]} 18. Bc2 {[%clk
00:59:30]} {[%emt 00:01:54]} b5 {[%clk 00:45:10]} {[%emt 00:02:55]} 19. axb5
{[%clk 00:54:22]} {[%emt 00:05:37]} Nxb5 {[%clk 00:45:30]} {[%emt 00:00:10]} 20.
Ra5 {[%clk 00:53:15]} {[%emt 00:01:37]} Nd6 {[%clk 00:40:16]} {[%emt 00:05:43]}
21. Nf3 {[%clk 00:51:41]} {[%emt 00:02:04]} Rc6 {[%clk 00:29:15]} {[%emt
00:11:32]} 22. Ne5 {[%clk 00:50:04]} {[%emt 00:02:07]} Ra6 {[%clk 00:29:01]}
{[%emt 00:00:44]} 23. Rxa6 {[%clk 00:49:54]} {[%emt 00:00:39]} bxa6 {[%clk
00:29:23]} {[%emt 00:00:08]} 24. Nc6 {[%clk 00:45:34]} {[%emt 00:04:50]} Nc8
{[%clk 00:23:24]} {[%emt 00:06:30]} 25. Ra1 {[%clk 00:44:45]} {[%emt 00:01:19]}
Bd6 {[%clk 00:22:50]} {[%emt 00:01:05]} 26. Bxd6 {[%clk 00:44:23]} {[%emt
00:00:51]} Nxd6 {[%clk 00:23:12]} {[%emt 00:00:08]} 27. Rxa6 {[%clk 00:44:40]}
{[%emt 00:00:13]} Re8 {[%clk 00:21:38]} {[%emt 00:02:03]} 28. Ne7+ {[%clk
00:43:46]} {[%emt 00:01:23]} Rxe7 {[%clk 00:21:59]} {[%emt 00:00:10]} 29. Rxd6
{[%clk 00:44:09]} {[%emt 00:00:07]} Rb7 {[%clk 00:22:16]} {[%emt 00:00:13]} 30.
Ba4 {[%clk 00:41:52]} {[%emt 00:02:47]} Kf8 {[%clk 00:21:09]} {[%emt 00:01:37]}
31. Ra6 {[%clk 00:40:15]} {[%emt 00:02:06]} Ne4 {[%clk 00:17:34]} {[%emt
00:04:05]} 32. f3 {[%clk 00:39:04]} {[%emt 00:01:41]} Nd2 {[%clk 00:17:28]}
{[%emt 00:00:36]} 33. Ra8+ {[%clk 00:37:34]} {[%emt 00:02:00]} Ke7 {[%clk
00:17:53]} {[%emt 00:00:06]} 34. Kf2 {[%clk 00:34:18]} {[%emt 00:03:45]} Rxb2
{[%clk 00:17:28]} {[%emt 00:00:56]} 35. g4 {[%clk 00:34:03]} {[%emt 00:00:44]}
Ne4+ {[%clk 00:16:25]} {[%emt 00:01:33]} 36. Ke1 {[%clk 00:29:16]} {[%emt
00:05:17]} Rb1+ {[%clk 00:15:53]} {[%emt 00:01:03]} 37. Ke2 {[%clk 00:28:44]}
{[%emt 00:01:02]} Nxc3+ {[%clk 00:15:53]} {[%emt 00:00:30]} 38. Kd2 {[%clk
00:28:50]} {[%emt 00:00:23]} Nxa4 {[%clk 00:15:27]} {[%emt 00:00:56]} 39. Rxa4
{[%clk 00:26:42]} {[%emt 00:02:39]} g5 {[%clk 00:11:37]} {[%emt 00:04:20]} 40.
e4 {[%clk 00:22:49]} {[%emt 00:04:23]} Rb3 {[%clk 00:04:29]} {[%emt 00:07:38]}
41. exd5 {[%clk 00:22:40]} {[%emt 00:00:38]} Rd3+ {[%clk 00:04:36]} {[%emt
00:00:24]} 42. Ke2 {[%clk 00:22:29]} {[%emt 00:00:39]} Rxd4 {[%clk 00:03:36]}
{[%emt 00:01:31]} 43. dxe6 {[%clk 00:22:00]} {[%emt 00:00:59]} Kxe6 {[%clk
00:02:39]} {[%emt 00:01:27]} 44. Ke3 {[%clk 00:19:37]} {[%emt 00:02:52]} Ke5
{[%clk 00:01:51]} {[%emt 00:01:19]} 45. Ra5+ {[%clk 00:19:06]} {[%emt
00:01:01]} Rd5 {[%clk 00:02:07]} {[%emt 00:00:14]} 46. Ra7 {[%clk 00:18:48]}
{[%emt 00:00:48]} Rc5 {[%clk 00:23:01]} {[%emt 00:09:37]} 47. Rxf7 {[%clk
00:47:37]} {[%emt 00:01:41]} g6 {[%clk 00:22:13]} {[%emt 00:01:18]} 48. Rg7
{[%clk 00:45:07]} {[%emt 00:03:00]} Kf6 {[%clk 00:21:24]} {[%emt 00:01:18]} 49.
Rd7 {[%clk 00:44:52]} {[%emt 00:00:45]} c3 {[%clk 00:20:58]} {[%emt 00:00:56]}
50. Rd1 {[%clk 00:45:08]} {[%emt 00:00:14]} c2 {[%clk 00:21:23]} {[%emt
00:00:06]} 51. Rc1 {[%clk 00:45:36]} {[%emt 00:00:02]} Ke5 {[%clk 00:21:45]}
{[%emt 00:00:08]} 52. h4 {[%clk 00:41:03]} {[%emt 00:05:03]} gxh4 {[%clk
00:21:40]} {[%emt 00:00:34]} 53. f4+ {[%clk 00:41:16]} {[%emt 00:00:17]} Kf6
{[%clk 00:21:37]} {[%emt 00:00:33]} 54. Ke4 {[%clk 00:40:16]} {[%emt 00:01:30]}
Rc3 {[%clk 00:17:27]} {[%emt 00:04:39]} 55. Kd4 {[%clk 00:39:17]} {[%emt
00:01:29]} Rf3 {[%clk 00:17:44]} {[%emt 00:00:14]} 56. Ke4 {[%clk 00:39:25]}
{[%emt 00:00:21]} Rc3 {[%clk 00:17:42]} {[%emt 00:00:33]} 57. Kd4 {[%clk
00:39:45]} {[%emt 00:00:10]} Rc7 {[%clk 00:17:35]} {[%emt 00:00:38]} 58. Ke4
{[%clk 00:38:59]} {[%emt 00:01:16]} g5 {[%clk 00:16:55]} {[%emt 00:01:10]} 59.
f5 {[%clk 00:38:06]} {[%emt 00:01:22]} Rc4+ {[%clk 00:17:06]} {[%emt 00:00:20]}
60. Kf3 {[%clk 00:36:41]} {[%emt 00:01:55]} Rf4+ {[%clk 00:17:27]} {[%emt
00:00:09]} 61. Ke3 {[%clk 00:36:44]} {[%emt 00:00:27]} Rxg4 {[%clk 00:17:42]}
{[%emt 00:00:15]} 62. Rxc2 {[%clk 00:37:06]} {[%emt 00:00:08]} Kxf5 {[%clk
00:17:55]} {[%emt 00:00:16]} 63. Rc5+ {[%clk 00:37:18]} {[%emt 00:00:19]} Kg6
{[%clk 00:18:16]} {[%emt 00:00:08]} 64. Kf3 {[%clk 00:36:46]} {[%emt 00:01:01]}
Rf4+ {[%clk 00:17:43]} {[%emt 00:01:04]} 65. Kg2 {[%clk 00:36:53]} {[%emt
00:00:22]} Kh5 {[%clk 00:18:05]} {[%emt 00:00:08]} 66. Kh3 {[%clk 00:36:47]}
{[%emt 00:00:36]} Rf3+ {[%clk 00:18:03]} {[%emt 00:00:33]} 67. Kg2 {[%clk
00:37:00]} {[%emt 00:00:16]} Rb3 {[%clk 00:17:31]} {[%emt 00:01:02]} 68. Rc8
{[%clk 00:36:46]} {[%emt 00:00:44]} h3+ {[%clk 00:17:25]} {[%emt 00:00:36]} 69.
Kh2 {[%clk 00:36:57]} {[%emt 00:00:19]} Kh4 {[%clk 00:17:23]} {[%emt 00:00:32]}
70. Rc4+ {[%clk 00:36:39]} {[%emt 00:00:48]} g4 {[%clk 00:17:45]} {[%emt
00:00:09]} 71. Rf4 {[%clk 00:36:12]} {[%emt 00:00:56]} Rb2+ {[%clk 00:17:38]}
{[%emt 00:00:37]} 72. Kh1 {[%clk 00:36:17]} {[%emt 00:00:25]} Kg3 {[%clk
00:16:22]} {[%emt 00:01:46]} 73. Rf1 {[%clk 00:35:33]} {[%emt 00:01:13]} h2
{[%clk 00:16:23]} {[%emt 00:00:29]} 74. Re1 {[%clk 00:35:03]} {[%emt 00:01:00]}
Rb3 {[%clk 00:14:12]} {[%emt 00:02:41]} 75. Re3+ {[%clk 00:32:47]} {[%emt
00:02:46]} Rxe3 {[%clk 00:12:03]} {[%emt 00:02:38]} 1/2-1/2